Workbook

Sheet Гиперссылки
B4: Раздел | C4: Подраздел | D4: Сумма
B6: Материалы | C6: Материал1 | D6: =RANDBETWEEN(1,1000) -> 597
C7: Материал2 | D7: =RANDBETWEEN(1,1000) -> 295
C8: Материал3 | D8: 91
C9: Материал4 | D9: 609
C10: Материал5 | D10: 800
C11: Материал6 | D11: 576
C12: Материал7 | D12: 303
C13: Материал8 | D13: 943
C14: Материал9 | D14: 602
C15: Материал10 | D15: 944
C16: ИТОГО | D16: =SUM(D6:D15) -> 5760
B18: Работы | C18: Работа1 | D18: =RANDBETWEEN(1,1000) -> 317
C19: Работа2 | D19: =RANDBETWEEN(1,1000) -> 134
C20: Работа3 | D20: 970
C21: Работа4 | D21: 871
C22: Работа5 | D22: 729
C23: Работа6 | D23: 912
C24: Работа7 | D24: 29
C25: Работа8 | D25: 579
C26: Работа9 | D26: 648
C27: Работа10 | D27: 355
C28: ИТОГО | D28: =SUM(D18:D27) -> 5544
B30: Прочее | C30: Прочее1 | D30: =RANDBETWEEN(1,1000) -> 667
C31: Прочее2 | D31: =RANDBETWEEN(1,1000) -> 583
C32: Прочее3 | D32: 498
C33: Прочее4 | D33: 996
C34: Прочее5 | D34: 969
C35: Прочее6 | D35: 59
C36: Прочее7 | D36: 973
C37: Прочее8 | D37: 916
C38: Прочее9 | D38: 265
C39: Прочее10 | D39: 918
C40: ИТОГО | D40: =SUM(D30:D39) -> 6844
B42: Ещё что-то | C42: Ещё что-то1 | D42: =RANDBETWEEN(1,1000) -> 336
C43: Ещё что-то2 | D43: =RANDBETWEEN(1,1000) -> 787
C44: Ещё что-то3 | D44: 45
C45: Ещё что-то4 | D45: 908
C46: Ещё что-то5 | D46: 979
C47: Ещё что-то6 | D47: 168
C48: Ещё что-то7 | D48: 705
C49: Ещё что-то8 | D49: 337
C50: Ещё что-то9 | D50: 146
C51: Ещё что-то10 | D51: 62
C52: ИТОГО | D52: =SUM(D42:D51) -> 4473
B54: Командировки | C54: Командировки1 | D54: =RANDBETWEEN(1,1000) -> 577
C55: Командировки2 | D55: =RANDBETWEEN(1,1000) -> 723
C56: Командировки3 | D56: 101
C57: Командировки4 | D57: 298
C58: Командировки5 | D58: 66
C59: Командировки6 | D59: 568
C60: Командировки7 | D60: 200
C61: Командировки8 | D61: 23
C62: Командировки9 | D62: 868
C63: Командировки10 | D63: 770
C64: ИТОГО | D64: =SUM(D54:D63) -> 4194
B66: Ну я не знаю | C66: Ну я не знаю1 | D66: =RANDBETWEEN(1,1000) -> 52
C67: Ну я не знаю2 | D67: =RANDBETWEEN(1,1000) -> 532
C68: Ну я не знаю3 | D68: 792
C69: Ну я не знаю4 | D69: 399
C70: Ну я не знаю5 | D70: 742
C71: Ну я не знаю6 | D71: 101
C72: Ну я не знаю7 | D72: 592
C73: Ну я не знаю8 | D73: 457
C74: Ну я не знаю9 | D74: 636
C75: Ну я не знаю10 | D75: 865
C76: ИТОГО | D76: =SUM(D66:D75) -> 5168
B78: ОГОГО | D78: =D16+D28+D40+D52+D64+D76 -> 31983

Sheet Макрос
B4: Раздел | C4: Подраздел | D4: Сумма
B6: Материалы | C6: Материал1 | D6: =RANDBETWEEN(1,1000) -> 790
C7: Материал2 | D7: =RANDBETWEEN(1,1000) -> 25
C8: Материал3 | D8: 50
C9: Материал4 | D9: 897
C10: Материал5 | D10: 994
C11: Материал6 | D11: 831
C12: Материал7 | D12: 810
C13: Материал8 | D13: 740
C14: Материал9 | D14: 527
C15: Материал10 | D15: 48
C16: ИТОГО | D16: =SUM(D6:D15) -> 5712
B18: Работы | C18: Работа1 | D18: =RANDBETWEEN(1,1000) -> 723
C19: Работа2 | D19: =RANDBETWEEN(1,1000) -> 758
C20: Работа3 | D20: 982
C21: Работа4 | D21: 22
C22: Работа5 | D22: 716
C23: Работа6 | D23: 854
C24: Работа7 | D24: 755
C25: Работа8 | D25: 442
C26: Работа9 | D26: 887
C27: Работа10 | D27: 405
C28: ИТОГО | D28: =SUM(D18:D27) -> 6544
B30: Прочее | C30: Прочее1 | D30: =RANDBETWEEN(1,1000) -> 997
C31: Прочее2 | D31: =RANDBETWEEN(1,1000) -> 275
C32: Прочее3 | D32: 7
C33: Прочее4 | D33: 357
C34: Прочее5 | D34: 583
C35: Прочее6 | D35: 922
C36: Прочее7 | D36: 885
C37: Прочее8 | D37: 762
C38: Прочее9 | D38: 192
C39: Прочее10 | D39: 85
C40: ИТОГО | D40: =SUM(D30:D39) -> 5065
B42: Ещё что-то | C42: Ещё что-то1 | D42: =RANDBETWEEN(1,1000) -> 735
C43: Ещё что-то2 | D43: =RANDBETWEEN(1,1000) -> 495
C44: Ещё что-то3 | D44: 962
C45: Ещё что-то4 | D45: 671
C46: Ещё что-то5 | D46: 20
C47: Ещё что-то6 | D47: 509
C48: Ещё что-то7 | D48: 392
C49: Ещё что-то8 | D49: 787
C50: Ещё что-то9 | D50: 470
C51: Ещё что-то10 | D51: 742
C52: ИТОГО | D52: =SUM(D42:D51) -> 5783
B54: Командировки | C54: Командировки1 | D54: =RANDBETWEEN(1,1000) -> 667
C55: Командировки2 | D55: =RANDBETWEEN(1,1000) -> 708
C56: Командировки3 | D56: 9
C57: Командировки4 | D57: 232
C58: Командировки5 | D58: 466
C59: Командировки6 | D59: 190
C60: Командировки7 | D60: 233
C61: Командировки8 | D61: 301
C62: Командировки9 | D62: 942
C63: Командировки10 | D63: 351
C64: ИТОГО | D64: =SUM(D54:D63) -> 4099
B66: Ну я не знаю | C66: Ну я не знаю1 | D66: =RANDBETWEEN(1,1000) -> 384
C67: Ну я не знаю2 | D67: =RANDBETWEEN(1,1000) -> 315
C68: Ну я не знаю3 | D68: 202
C69: Ну я не знаю4 | D69: 413
C70: Ну я не знаю5 | D70: 770
C71: Ну я не знаю6 | D71: 915
C72: Ну я не знаю7 | D72: 162
C73: Ну я не знаю8 | D73: 385
C74: Ну я не знаю9 | D74: 211
C75: Ну я не знаю10 | D75: 382
C76: ИТОГО | D76: =SUM(D66:D75) -> 4139
B78: ОГОГО | D78: =D16+D28+D40+D52+D64+D76 -> 31342
